bitfinex-derivatives/quotes_ETHF0:USTF0_20240927
["timestamp","ask_amount","ask_price","bid_price","bid_amount"]
[1727457449617,0.36929,2706.9,2706.7,0.36931]
[1727457450009,0.36927,2707.1,2706.9,0.36929]
[1727457450515,0.36926,2707.2,2707.0,0.36928]
[1727457450716,0.3894,2707.3,2707.0,0.36928]
[1727457451116,0.36927,2707.1,2706.9,0.36929]
[1727457451513,0.75865,2707.3,2706.7,3.2078]
[1727457451715,0.75865,2707.3,2706.7,4.13109]
[1727457451917,3.9306,2707.5,2707.0,3.2078]
[1727457451918,0.36922,2707.5,2707.0,3.2078]
[1727457452217,0.36923,2707.4,2707.2,0.36924]
[1727457452614,4.13076,2707.7,2707.1,0.7516]
[1727457452615,0.36922,2707.5,2707.3,0.36924]
[1727457453016,0.36922,2707.5,2707.2,0.36924]
[1727457453413,0.36922,2707.5,2707.2,0.36925]
[1727457454712,4.13076,2707.7,2707.1,0.7516]
[1727457454713,3.2078,2707.7,2707.1,0.7516]
[1727457454914,3.2078,2708.3,2707.6,3.2078]
[1727457455118,0.36905,2708.7,2708.4,0.36908]
[1727457455517,0.36906,2708.6,2708.4,0.36908]
[1727457455711,6.7578,2708.8,2708.4,0.36908]
[1727457456020,0.36907,2708.5,2708.2,0.36911]
[1727457456219,0.36907,2708.5,2708.3,0.3691]
[1727457456421,2.88,2708.4,2708.2,0.36911]
[1727457456616,2.88,2708.7,2707.9,3.2078]
[1727457457013,3.24906,2708.7,2707.9,3.2078]
[1727457457214,3.24906,2708.7,2708.3,0.36909]
[1727457457415,3.24906,2708.7,2707.9,3.2078]
[1727457457416,3.24908,2708.5,2707.9,3.2078]
[1727457457624,2.88,2708.5,2707.9,3.2078]
[1727457457825,2.88,2708.5,2708.3,0.3691]
[1727457458319,0.36907,2708.6,2708.3,0.3691]
[1727457459220,0.36908,2708.5,2708.2,3.57691]
[1727457459624,0.36907,2708.6,2708.3,0.3691]
[1727457460228,0.92258,2708.9,2708.3,0.3691]
[1727457460730,0.36907,2708.6,2708.3,0.3691]
[1727457461224,0.36907,2708.6,2708.2,3.2078]
[1727457461424,0.36907,2708.6,2708.3,0.3691]
[1727457462222,0.36907,2708.5,2708.2,3.57691]
[1727457462424,0.3691,2708.4,2708.2,3.2078]
[1727457462621,0.36908,2708.5,2708.2,3.57691]
[1727457462821,0.36909,2708.4,2708.2,3.57691]
[1727457463028,0.36908,2708.5,2708.3,0.3691]
[1727457463228,0.36908,2708.5,2708.2,3.57691]
[1727457463433,0.36909,2708.4,2708.2,3.57691]
[1727457464829,0.36908,2708.5,2708.2,3.2078]
[1727457465129,1.32404,2708.7,2708.3,0.3691]
[1727457465442,0.36908,2708.5,2708.3,0.3691]
[1727457465639,0.36908,2708.5,2708.2,3.57691]
[1727457465840,0.3691,2708.4,2708.2,3.2078]
[1727457466041,0.3691,2708.4,2708.2,3.57691]
[1727457466253,1.32404,2708.7,2708.2,3.2078]
[1727457466254,0.3691,2708.3,2708.2,3.2078]
[1727457467135,0.36914,2708.1,2707.8,3.2078]
[1727457467443,0.36915,2708.0,2707.9,0.36916]
[1727457467737,0.36912,2708.2,2707.8,3.2078]
[1727457467945,0.36913,2708.1,2708.0,0.36914]
[1727457468143,0.92274,2708.4,2708.0,0.36914]
[1727457468643,0.92276,2708.3,2707.9,0.36915]
[1727457469037,0.92274,2708.4,2707.8,3.2078]
[1727457469038,0.36912,2708.2,2707.8,3.2078]
[1727457469344,0.36912,2708.2,2708.0,0.36913]
[1727457469848,0.36913,2708.1,2707.9,0.36915]
[1727457470043,3.2078,2708.5,2708.1,0.36912]
[1727457470243,3.2078,2708.5,2708.2,0.36911]
[1727457470244,4.13051,2708.5,2708.2,0.36911]
[1727457470434,3.9217,2708.6,2707.8,3.2078]
[1727457470435,0.92273,2708.4,2707.8,3.2078]
[1727457470748,0.36913,2708.1,2707.9,0.36915]
[1727457471246,0.9228,2708.2,2707.8,3.57696]
[1727457471432,0.36915,2708.0,2707.8,3.57696]
[1727457471637,0.3886,2708.1,2707.8,3.57696]
[1727457471834,0.36916,2707.9,2707.8,3.2078]
[1727457472544,0.36917,2707.8,2707.7,0.3835]
[1727457474043,0.36919,2707.7,2707.5,0.3692]
[1727457474842,0.36919,2707.7,2707.4,0.3879]
[1727457475047,0.36919,2707.7,2707.6,0.36919]
[1727457475547,0.9229,2707.9,2707.4,0.3879]
[1727457475735,0.9229,2707.9,2707.4,0.75712]
[1727457475736,0.92294,2707.8,2707.4,0.75712]
[1727457475936,0.3692,2707.6,2707.4,0.75712]
[1727457476748,0.36921,2707.5,2707.4,0.3879]
[1727457476938,0.36922,2707.4,2707.3,3.2078]
[1727457477538,7.3358,2708.2,2707.3,3.2078]
[1727457477739,1.31145,2708.1,2707.4,0.3948]
[1727457477944,0.3886,2708.1,2707.8,0.36916]
[1727457478146,0.36917,2707.9,2707.7,0.36918]
[1727457479047,0.36917,2707.8,2707.6,0.36919]
[1727457479342,0.36917,2707.8,2707.3,3.57703]
[1727457479343,0.36922,2707.4,2707.3,3.57703]
[1727457479642,3.803,2707.6,2707.3,3.57703]
[1727457479847,0.36922,2707.4,2707.3,3.57703]
[1727457480238,0.36922,2707.4,2707.3,3.2078]
[1727457480440,0.36922,2707.5,2707.4,0.36922]
[1727457481236,0.36922,2707.4,2707.3,3.57703]
[1727457481439,0.36927,2707.1,2707.0,3.2078]
[1727457481639,3.80316,2707.2,2706.9,0.36928]
[1727457481843,3.80316,2707.2,2706.9,0.36929]
[1727457481844,0.36928,2707.0,2706.9,0.36929]
[1727457482051,0.36928,2707.0,2706.8,3.576]
[1727457482250,0.36928,2707.0,2706.9,0.36929]
[1727457482642,0.36929,2706.9,2706.8,3.94529]
[1727457483253,4.17253,2706.9,2706.8,3.2078]
[1727457483553,3.24929,2706.9,2706.8,3.57711]
[1727457483755,0.36929,2706.9,2706.8,3.57711]
[1727457483940,0.36929,2706.9,2706.8,3.2078]
[1727457485050,6.94369,2706.9,2706.8,3.2078]
[1727457485745,7.86693,2706.9,2706.8,3.2078]
[1727457485945,1.29281,2706.3,2706.2,0.086]
[1727457486151,2.88,2706.3,2706.0,0.36941]
[1727457486452,2.88,2706.3,2705.9,0.36943]
[1727457486645,0.36938,2706.3,2706.1,0.3694]
[1727457486847,4.5219,2706.4,2706.0,0.36941]
[1727457487047,0.36939,2706.2,2705.8,3.2078]
[1727457487354,4.5219,2706.4,2705.9,0.36943]
[1727457487355,5.44533,2706.4,2705.9,0.36943]
[1727457487555,5.44533,2706.4,2705.9,0.73693]
[1727457487751,0.36941,2706.0,2705.9,0.3675]
[1727457487953,2.88,2706.2,2705.9,0.3675]
[1727457487954,0.36941,2706.1,2705.9,0.3675]
[1727457488152,0.36941,2706.0,2705.9,0.3675]
[1727457488456,2.88,2706.2,2705.9,0.3675]
[1727457488457,0.36941,2706.1,2705.9,0.3675]
[1727457488964,0.36941,2706.0,2705.9,0.3675]
[1727457489852,0.36941,2706.1,2705.9,0.73692]
[1727457490049,2.88,2706.2,2705.9,0.73692]
[1727457490050,2.88,2706.2,2705.9,0.3675]
[1727457490363,0.36941,2706.0,2705.9,0.3675]
[1727457490655,0.36943,2705.9,2705.8,3.57723]
[1727457491047,2.88,2706.2,2705.8,3.2078]
[1727457491256,0.36943,2705.9,2705.8,3.57724]
[1727457492346,0.36942,2706.0,2705.9,0.36942]
[1727457492549,3.2078,2706.5,2705.8,6.0878]
[1727457492857,3.57716,2706.5,2706.4,0.36936]
[1727457493056,3.2938,2707.9,2706.4,8.6178]
[1727457493253,6.0878,2707.9,2707.0,3.2078]
[1727457493452,6.45696,2707.9,2707.1,0.3942]
[1727457493656,3.2078,2707.9,2707.7,0.36918]
[1727457494052,3.2078,2707.9,2707.6,0.36919]
[1727457494250,3.2078,2707.9,2707.8,0.36917]
[1727457494451,3.2078,2707.9,2707.7,0.36918]
[1727457494859,3.2078,2707.9,2707.8,0.36917]
[1727457495067,3.2078,2707.9,2707.3,3.2078]
[1727457495068,2.88,2708.3,2707.9,0.36916]
[1727457495261,3.2078,2708.4,2707.9,0.36916]
[1727457495262,3.5769,2708.4,2707.9,0.36916]
[1727457495560,3.2078,2708.4,2707.7,2.88]
[1727457495761,2.88,2708.7,2708.3,0.36909]
[1727457495950,3.5775,2708.8,2708.1,2.88]
[1727457496156,3.2078,2708.8,2708.1,2.88]
[1727457496351,3.2078,2708.8,2708.6,0.36905]
[1727457496568,3.2078,2708.8,2708.5,0.36907]
[1727457496869,3.2078,2708.8,2708.3,3.2078]
[1727457497065,0.36907,2708.6,2708.1,0.74882]
[1727457497266,3.57688,2708.5,2708.1,0.74882]
[1727457497468,0.36908,2708.5,2708.1,0.74882]
[1727457497667,3.57687,2708.6,2708.2,0.36911]
[1727457497865,0.36907,2708.6,2708.2,0.36911]
[1727457498465,0.36908,2708.5,2708.1,0.3797]
[1727457498668,0.36908,2708.5,2708.2,3.2078]
[1727457498859,0.36908,2708.5,2708.2,3.57691]
[1727457499063,0.36907,2708.6,2708.2,3.57691]
[1727457499272,3.5748,2708.9,2708.3,0.36909]
[1727457499575,3.5748,2708.9,2708.2,3.2078]
[1727457499773,0.36908,2708.5,2708.2,3.2078]
[1727457500064,0.92259,2708.8,2708.2,3.57691]
[1727457500271,0.36908,2708.5,2708.2,3.57691]
[1727457500864,0.36906,2708.7,2708.3,0.36909]
[1727457501062,0.36906,2708.6,2708.3,0.36909]
[1727457501665,0.36906,2708.6,2708.2,3.57691]
[1727457501980,4.128,2709.1,2708.5,3.2078]
[1727457502164,0.36904,2708.8,2708.5,3.2078]
[1727457502668,5.05051,2709.1,2708.5,3.2078]
[1727457502864,0.36904,2708.8,2708.5,3.2078]
[1727457503168,0.36903,2708.9,2708.5,3.57687]
[1727457503469,4.77466791,2709.2,2708.5,3.2078]
[1727457503673,0.369,2709.1,2708.7,0.36903]
[1727457503869,0.369,2709.1,2708.8,0.36903]
[1727457504074,4.77466791,2709.2,2708.5,3.2078]
[1727457504075,0.36901,2709.0,2708.5,3.2078]
[1727457504264,4.77466791,2709.2,2708.5,3.2078]
[1727457504461,0.36903,2708.9,2708.5,3.2078]
[1727457504876,0.36903,2708.9,2708.6,0.36906]
[1727457505072,5.69713791,2709.2,2708.6,0.36906]
[1727457505273,3.57677,2709.3,2709.0,0.369]
[1727457505471,3.57677,2709.3,2708.5,3.2078]
[1727457505472,3.2078,2709.3,2708.7,0.3793]
[1727457505679,3.57677,2709.3,2708.7,0.3793]
[1727457505867,0.36898,2709.2,2708.9,0.36901]
[1727457506069,3.2078,2709.3,2708.7,0.3793]
[1727457506271,3.57677,2709.3,2709.0,0.369]
[1727457506467,3.57677,2709.3,2708.9,0.36901]
[1727457506468,0.36898,2709.2,2708.9,0.36901]
[1727457506776,0.36898,2709.2,2708.7,0.3793]
[1727457506966,3.2078,2709.3,2709.2,0.36898]
[1727457507166,3.2078,2709.6,2708.9,4.13034]
[1727457507366,3.2078,2709.6,2709.4,0.36894]
[1727457507968,3.2078,2709.6,2709.0,0.388]
[1727457508172,3.2078,2709.6,2709.5,0.36894]
[1727457508374,3.2078,2709.6,2709.4,0.36894]
[1727457508676,0.36894,2709.5,2709.2,0.36897]
[1727457508872,3.57673,2709.6,2709.0,0.388]
[1727457509574,0.36894,2709.5,2709.3,0.36896]
[1727457509964,0.36896,2709.4,2709.2,0.36897]
[1727457510173,0.36898,2709.2,2709.0,0.757]
[1727457510568,3.2078,2709.3,2708.9,3.2078]
[1727457510772,0.36901,2709.0,2708.9,3.2078]
[1727457511279,0.36901,2709.0,2708.7,0.3793]
[1727457511280,0.36903,2708.8,2708.7,0.3793]
[1727457511988,0.36907,2708.6,2708.3,3.2078]
[1727457512174,0.36906,2708.7,2708.5,0.36907]
[1727457512365,0.36906,2708.7,2708.3,3.2078]
[1727457512366,0.36908,2708.5,2708.3,3.2078]
[1727457512571,0.36909,2708.4,2708.3,3.2078]
[1727457512771,3.2078,2709.0,2708.3,3.2078]
[1727457513176,0.92256,2708.9,2708.5,0.36906]
[1727457513373,0.36905,2708.7,2708.5,0.36906]
[1727457513885,0.36904,2708.8,2708.6,0.36906]
[1727457514074,0.36905,2708.7,2708.5,0.36907]
[1727457514374,0.36905,2708.7,2708.3,3.2078]
[1727457514582,0.36905,2708.7,2708.6,0.36906]
[1727457515081,3.2078,2709.0,2708.7,0.36904]
[1727457515278,0.36904,2708.8,2708.6,0.36905]
[1727457515470,0.36905,2708.7,2708.6,0.36905]
[1727457515665,4.13033,2709.0,2708.3,3.2078]
[1727457515666,0.36908,2708.5,2708.3,3.2078]
[1727457515877,0.36908,2708.5,2708.3,3.57689]
[1727457516075,0.36909,2708.4,2708.3,3.2078]
[1727457516666,4.06109,2708.4,2708.3,3.2078]
[1727457517276,4.06109,2708.4,2707.9,4.16]
[1727457517277,3.692,2708.4,2707.9,0.36915]
[1727457517473,3.2078,2708.3,2707.8,2.88]
[1727457517677,0.92267,2708.6,2707.8,2.88]
[1727457517883,0.36909,2708.4,2708.1,0.36912]
[1727457518075,0.36909,2708.4,2708.2,0.36911]
[1727457518281,0.36912,2708.2,2708.0,0.36914]
[1727457518475,0.3691,2708.4,2708.1,0.36912]
[1727457518676,0.36912,2708.2,2708.0,0.36913]
[1727457518888,0.92269,2708.5,2707.8,2.88]
[1727457519086,0.36912,2708.2,2708.0,0.36913]
[1727457519383,0.36913,2708.1,2707.9,0.36915]
[1727457519683,0.36913,2708.1,2708.0,0.36914]
[1727457519885,0.36913,2708.1,2707.9,0.36915]
[1727457520185,0.92279,2708.2,2707.8,0.36917]
[1727457520984,0.36913,2708.1,2707.9,0.36915]
[1727457521174,0.36916,2708.0,2707.7,3.5836]
[1727457521375,0.92279,2708.2,2707.8,0.36917]
[1727457521576,0.36915,2708.0,2707.8,0.36917]
[1727457521780,0.36916,2707.9,2707.8,0.36917]
[1727457522186,0.36916,2707.9,2707.7,3.95277]
[1727457522376,0.36916,2707.9,2707.8,0.36917]
[1727457523483,0.36916,2707.9,2707.7,3.95277]
[1727457523679,0.36917,2707.8,2707.7,3.2078]
[1727457524278,0.36917,2707.8,2707.7,3.57698]
[1727457524580,0.36917,2707.8,2707.7,3.2078]
[1727457525281,0.36917,2707.8,2707.5,0.3692]
[1727457525282,1.29224,2707.5,2707.4,0.3965]
[1727457525788,1.29224,2707.5,2707.2,0.36924]
[1727457525789,0.36924,2707.3,2707.2,0.36924]
[1727457525987,0.923,2707.6,2707.4,0.36922]
[1727457526194,0.923,2707.6,2707.3,0.36923]
[1727457526487,0.36923,2707.4,2707.1,3.2078]
[1727457526789,0.36924,2707.3,2707.1,3.2078]
[1727457527292,0.36924,2707.3,2707.2,0.36924]
[1727457528085,4.52244,2707.8,2707.1,3.57706]
[1727457528086,0.36925,2707.2,2707.1,3.57706]
[1727457528285,0.36925,2707.2,2707.1,3.2078]
[1727457528485,1.29239,2707.2,2707.1,3.2078]
[1727457529905,4.98599,2707.2,2707.1,3.2078]
[1727457530887,0.36925,2707.2,2707.1,3.2078]
[1727457531086,4.06285,2707.2,2707.1,3.2078]
[1727457531485,4.06285,2707.2,2706.9,0.36928]
[1727457531784,0.36927,2707.1,2706.9,0.36928]
[1727457533292,0.36927,2707.1,2706.8,3.5771]
[1727457533493,0.36929,2707.0,2706.8,3.2078]
[1727457533686,0.36929,2706.9,2706.8,3.2078]
[1727457533882,0.36929,2706.9,2706.6,0.36932]
[1727457534087,0.3693,2706.9,2706.6,0.36932]
[1727457534489,0.36933,2706.7,2706.5,0.762]
[1727457535189,0.36933,2706.6,2706.5,0.762]
[1727457535391,0.92334,2706.6,2706.4,3.2078]
[1727457535582,6.0878,2706.7,2706.3,0.36937]
[1727457535781,7.01112,2706.7,2706.2,0.36938]
[1727457536090,0.36936,2706.4,2706.2,0.36938]
[1727457536292,0.36936,2706.4,2706.1,3.5887]
[1727457536587,0.36935,2706.5,2706.1,3.5887]
[1727457536789,0.36937,2706.4,2706.1,3.95809]
[1727457537000,0.36937,2706.4,2706.2,0.36938]
[1727457537290,6.0878,2706.7,2706.1,3.5887]
[1727457537291,0.36935,2706.5,2706.3,0.36937]
[1727457537491,0.36935,2706.5,2706.2,0.36938]
[1727457537687,0.36936,2706.4,2706.2,0.36938]
[1727457537881,0.36936,2706.4,2706.1,6.83809]
[1727457538082,0.92334,2706.6,2706.1,3.5887]
[1727457538083,0.36935,2706.5,2706.1,3.5887]
[1727457538286,0.36939,2706.2,2706.1,3.5887]
[1727457538688,0.36939,2706.2,2706.1,3.2078]
[1727457540191,0.36939,2706.2,2705.7,6.4887]
[1727457540192,0.36941,2706.1,2705.7,6.4887]
[1727457540391,4.53375,2706.3,2705.7,6.4887]
[1727457540583,0.36942,2706.0,2705.8,0.36944]
[1727457540917,0.92348,2706.2,2705.7,0.36946]
[1727457540918,0.36943,2705.9,2705.7,0.36946]
[1727457541096,0.36942,2706.0,2705.5,0.7409]
[1727457541397,0.36943,2705.9,2705.6,0.36946]
[1727457541995,0.36943,2705.9,2705.5,0.7409]
[1727457541996,1.61741,2706.1,2705.5,1.66461]
[1727457542298,0.36941,2706.1,2705.8,0.36944]
[1727457542685,0.3694,2706.2,2706.0,0.36941]
[1727457542890,0.3694,2706.2,2705.9,0.36942]
[1727457543086,0.4025,2706.3,2706.0,0.36941]
[1727457543388,0.36939,2706.2,2706.0,0.36941]
[1727457543590,0.4025,2706.3,2706.1,0.3694]
[1727457543796,3.2078,2706.6,2706.3,0.36936]
[1727457543995,3.2078,2706.6,2705.8,2.88]
[1727457543996,0.36935,2706.5,2705.8,2.88]
[1727457544294,3.2078,2706.6,2706.2,0.36938]
[1727457544504,0.36936,2706.5,2706.2,0.36938]
[1727457544691,0.36936,2706.5,2706.1,0.4052]
[1727457544894,0.36934,2706.6,2706.3,0.36937]
[1727457545299,3.80331,2706.7,2706.4,0.36935]
[1727457545300,3.24933,2706.7,2706.4,0.36935]
[1727457545600,0.36938,2706.3,2706.1,0.4052]
[1727457545896,0.36939,2706.2,2706.1,0.4052]
[1727457546496,0.36938,2706.3,2706.1,4.46979]
[1727457546686,0.36939,2706.2,2706.1,0.4052]
[1727457547695,0.36943,2705.9,2705.8,0.4052]
[1727457548694,0.36945,2705.8,2705.6,3.2078]
[1727457548994,0.36943,2705.9,2705.6,3.57727]
[1727457549896,2.88,2706.2,2705.6,3.2078]
[1727457550113,0.36945,2705.8,2705.6,3.2078]
[1727457550502,3.24943,2705.9,2705.6,3.2078]
[1727457551090,0.36943,2705.9,2705.6,3.57727]
[1727457551292,0.36942,2706.0,2705.6,3.57727]
[1727457551593,0.36941,2706.1,2705.7,0.36945]
[1727457551901,0.36942,2706.0,2705.6,3.57726]
[1727457553000,1.248,2706.2,2705.6,3.57726]
[1727457553194,0.36942,2706.0,2705.6,3.57726]
[1727457553395,0.36937,2706.4,2705.9,3.2078]
[1727457553604,0.36935,2706.5,2706.0,0.775]
[1727457553798,0.36935,2706.5,2706.1,0.4051]
[1727457553994,4.13116,2706.6,2706.1,0.4051]
[1727457554196,0.36939,2706.2,2706.1,0.4051]
[1727457554401,2.88,2706.5,2706.1,0.4051]
[1727457554600,0.36935,2706.5,2706.2,0.36938]
[1727457554802,0.36935,2706.5,2706.1,0.77449]
[1727457555008,0.36935,2706.5,2706.2,0.36939]
[1727457555302,3.2078,2706.6,2706.1,0.4051]
[1727457555504,0.36938,2706.3,2706.1,0.4051]
[1727457555804,0.36939,2706.2,2706.1,0.4051]
[1727457555998,0.36938,2706.3,2706.1,0.4051]
[1727457556401,0.36937,2706.4,2706.1,0.7745]
[1727457556898,4.4558,2706.6,2706.1,0.7745]
[1727457557104,0.36937,2706.3,2706.1,0.7745]
[1727457557705,0.36937,2706.3,2706.1,0.4051]
[1727457557905,0.36939,2706.2,2706.1,0.4051]
[1727457558305,0.36935,2706.5,2706.1,4.1003]
[1727457558503,0.36935,2706.5,2706.3,0.36937]
[1727457558705,0.36938,2706.3,2706.1,0.77449]
[1727457558918,4.13115,2706.6,2706.1,0.4051]
[1727457558919,0.36939,2706.2,2706.1,0.4051]
[1727457559509,0.3694,2706.1,2706.0,0.3768]
[1727457559712,4.13115,2706.6,2706.0,0.3768]
[1727457559905,0.36938,2706.3,2706.1,0.36939]
[1727457560408,4.13115,2706.6,2706.0,0.74621]
[1727457560409,0.36939,2706.2,2706.0,0.74621]
[1727457560605,0.36938,2706.3,2706.1,0.36939]
[1727457560812,3.2078,2706.6,2706.0,0.3768]
[1727457561000,0.36932,2706.7,2706.2,4.13128]
[1727457561305,0.3848,2706.8,2706.6,0.36933]
[1727457561506,0.36933,2706.7,2706.5,0.36934]
[1727457561701,0.75411,2706.8,2706.6,0.36933]
[1727457561904,0.36932,2706.7,2706.6,0.36933]
[1727457562602,0.36932,2706.7,2706.3,0.7702]
[1727457562802,3.2078,2707.0,2706.3,0.7702]
[1727457563016,0.36929,2706.9,2706.8,0.36931]
[1727457563204,3.2078,2707.0,2706.9,0.36929]
[1727457563712,3.57708,2707.0,2706.9,0.36929]
[1727457565112,3.2078,2707.5,2707.2,0.36925]
[1727457565300,3.2078,2707.5,2707.0,3.9836]
[1727457565301,0.36924,2707.3,2707.0,3.9836]
[1727457565499,4.13084,2707.5,2707.1,0.36926]
[1727457565706,0.92307,2707.4,2707.1,0.36926]
[1727457566204,0.36926,2707.2,2707.0,0.7758]
[1727457566801,0.36926,2707.2,2707.1,0.36926]
[1727457567408,0.36926,2707.2,2707.0,0.7758]
[1727457567409,0.36926,2707.2,2707.0,1.14507]
[1727457567811,0.36926,2707.2,2707.1,0.36926]
[1727457568010,0.36928,2707.0,2706.9,3.2078]
[1727457568212,0.36932,2706.7,2706.6,1.13863]
[1727457568405,0.9232,2707.0,2706.6,1.13863]
[1727457568918,0.36931,2706.8,2706.6,1.13863]
[1727457569111,0.3693,2706.9,2706.7,0.36932]
[1727457570216,0.36931,2706.8,2706.7,0.36932]
[1727457571014,0.3693,2706.9,2706.7,0.36932]
[1727457571211,0.9232,2707.0,2706.7,0.36932]
[1727457571212,0.36931,2706.8,2706.7,0.36932]
[1727457571413,0.36931,2706.8,2706.6,3.9771]
[1727457571808,0.36931,2706.8,2706.7,0.36932]
[1727457572007,0.36932,2706.7,2706.6,0.7693]
[1727457572209,0.36932,2706.7,2706.6,1.13863]
[1727457572610,0.92325,2706.9,2706.6,1.13863]
[1727457573009,0.36931,2706.8,2706.7,0.36931]
[1727457573518,1.32611,2707.0,2706.7,0.36931]
[1727457573706,1.32611,2707.0,2706.6,1.13863]
[1727457574018,0.36932,2706.8,2706.6,1.13863]
[1727457574227,0.3693,2706.9,2706.7,0.36931]
[1727457574738,0.36932,2706.7,2706.6,1.13863]
[1727457576523,0.36931,2706.8,2706.7,0.36931]
[1727457576712,0.3693,2706.9,2706.7,0.36931]
[1727457576913,3.2078,2707.2,2706.7,0.92331]
[1727457577218,0.36922,2707.5,2707.3,0.36923]
[1727457577530,0.36922,2707.5,2707.0,0.9232]
[1727457577531,4.8903,2707.7,2707.4,0.36921]
[1727457577818,0.36921,2707.6,2707.4,0.36921]
[1727457578018,0.7623,2707.7,2707.5,0.36921]
[1727457578019,1.13149,2707.7,2707.5,0.36921]
[1727457578217,0.3692,2707.6,2707.2,0.7579]
[1727457578415,0.3692,2707.6,2707.4,0.36921]
[1727457580821,0.92296,2707.7,2707.3,0.36923]
[1727457581022,0.36922,2707.5,2707.3,0.36923]
[1727457581320,0.3692,2707.6,2707.4,0.36922]
[1727457581916,0.36921,2707.5,2707.3,0.36923]
[1727457582321,0.3692,2707.6,2707.4,0.36922]
[1727457582524,3.2078,2707.8,2707.3,3.2078]
[1727457582823,3.57697,2707.8,2707.7,0.36918]
[1727457583024,3.2078,2707.8,2707.7,0.36918]
[1727457583321,0.36919,2707.7,2707.5,0.3692]
[1727457583620,3.57698,2707.8,2707.6,0.3692]
[1727457583823,3.2078,2707.8,2707.6,0.3692]
[1727457584015,3.2078,2707.8,2707.3,3.2078]
[1727457584016,0.3692,2707.6,2707.5,0.36921]
[1727457584210,0.36922,2707.5,2707.3,3.57702]
[1727457584411,0.36922,2707.4,2707.3,3.2078]
[1727457585012,2.21527,2707.5,2707.4,8.08228]
[1727457585211,5.48547,2707.5,2707.4,8.08228]
[1727457585411,9.17907,2707.5,2707.4,8.08228]
[1727457585624,12.38687,2707.5,2707.4,8.08228]
[1727457586423,18.38687,2707.5,2707.4,8.08228]
[1727457590517,15.50687,2707.5,2707.4,8.08228]
[1727457590913,9.50687,2707.5,2707.4,8.08228]
[1727457593123,9.11667,2707.5,2707.4,8.08228]
[1727457593520,0.3922,2708.2,2707.4,11.77588]
[1727457593718,0.3922,2708.2,2707.6,0.36919]
[1727457593719,0.4008,2708.1,2707.6,0.36919]
[1727457593927,0.92286,2708.0,2707.6,0.36919]
[1727457594235,0.92286,2708.0,2707.6,0.74779]
[1727457594236,0.36917,2707.9,2707.6,0.74779]
[1727457594528,0.36917,2707.8,2707.6,0.74779]
[1727457594724,0.92286,2708.0,2707.6,0.74779]
[1727457594920,0.36917,2707.9,2707.6,0.74779]
[1727457595220,0.4008,2708.1,2707.9,0.36915]
[1727457595524,0.76993,2708.1,2707.8,0.36916]
[1727457595725,0.36915,2708.0,2707.7,0.36918]
[1727457595927,0.4008,2708.1,2707.6,0.3786]
[1727457596128,0.4008,2708.1,2707.9,0.36915]
[1727457596329,0.4008,2708.1,2707.6,0.3786]
[1727457596525,0.36915,2708.0,2707.7,0.36918]
[1727457596919,0.36916,2707.9,2707.7,0.36918]
[1727457597125,0.36916,2707.9,2707.6,0.74779]
[1727457598526,0.36915,2708.0,2707.7,0.36917]
[1727457598727,0.36916,2707.9,2707.6,0.74779]
[1727457598938,0.92286,2708.0,2707.6,0.3786]
[1727457599234,0.36918,2707.8,2707.6,0.3786]
[1727457599430,0.36918,2707.7,2707.6,0.3786]
[1727457600428,0.36918,2707.7,2707.4,8.45149]
[1727457600429,1.29224,2707.5,2707.4,8.08228]
[1727457600624,5.09527,2707.5,2707.4,8.08228]
[1727457600821,15.66830744,2707.5,2707.4,8.08228]
[1727457601023,16.04910744,2707.5,2707.4,8.08228]
[1727457601230,56.84910744,2707.5,2707.4,8.08228]
[1727457602130,46.12304744,2707.5,2707.4,8.08228]
[1727457602526,5.32304744,2707.5,2707.4,8.08228]
[1727457603424,1.62944744,2707.5,2707.4,8.08228]
[1727457603619,5.32304744,2707.5,2707.4,8.08228]
[1727457604128,6.24607744,2707.5,2707.4,8.08228]
[1727457604325,12.24607744,2707.5,2707.4,8.08228]
[1727457605231,13.16910744,2707.5,2707.4,8.08228]
[1727457605431,13.16910744,2707.5,2707.4,7.31902]
[1727457605732,13.16910744,2707.5,2707.4,5.45136001]
[1727457605932,13.16910744,2707.5,2707.4,0.85860001]
[1727457606132,1.29253,2706.9,2706.8,0.086]
[1727457606433,0.36931,2706.8,2706.7,0.7417]
[1727457607025,1.29258,2706.8,2706.7,0.7417]
[1727457607434,4.17258,2706.8,2706.7,0.7417]
[1727457607930,0.36935,2706.5,2706.4,0.4051]
[1727457608133,0.36936,2706.4,2706.3,0.3686]
[1727457610228,7.86797,2706.4,2706.3,0.3686]
[1727457611933,4.98797,2706.4,2706.3,0.3686]
[1727457612231,1.29277,2706.4,2706.3,0.3686]
[1727457612440,0.36936,2706.4,2706.3,0.3686]
[1727457613034,5.37015,2706.6,2706.3,0.3686]
[1727457613243,0.36936,2706.4,2706.3,0.3686]
[1727457615036,1.29277,2706.4,2706.3,0.3686]
[1727457615431,4.98797,2706.4,2706.3,0.3686]
[1727457615635,7.86797,2706.4,2706.3,0.3686]
[1727457616038,0.36943,2705.9,2705.8,0.3828]
[1727457616547,3.57723,2705.9,2705.8,0.3828]
[1727457617044,1.239,2706.2,2705.9,0.36942]
[1727457617338,1.239,2706.2,2705.8,0.3828]
[1727457617732,3.57717,2706.4,2706.1,0.36939]